fUST/lending_fUST_20250701
["ID","MTS","AMOUNT","RATE_DAILY","PERIOD"]
[368752039,1751346642148,-515.58,0.00018879,2]
[368752040,1751346642157,-460.0,0.00018879,2]
[368752041,1751346642167,-460.0,0.00018879,2]
[368752042,1751346642176,-460.0,0.00018879,2]
[368752043,1751346642186,-747.3,0.00018879,2]
[368752044,1751346642195,-460.0,0.00018879,2]
[368752045,1751346642205,-450.27728455,0.00018879,2]
[368752046,1751346642218,-766.47,0.00018879,2]
[368752047,1751346642227,-1000.0,0.00018879,2]
[368752048,1751346642237,-311.23056851,0.00018879,2]
[368752049,1751346642248,-1035.9,0.00018879,2]
[368752050,1751346642257,-460.0,0.00018879,2]
[368752051,1751346642267,-460.0,0.00018879,2]
[368752053,1751346642277,-460.0,0.00018879,2]
[368752054,1751346642287,-460.0,0.00018879,2]
[368752055,1751346642297,-460.0,0.00018879,2]
[368752056,1751346642307,-460.0,0.00018879,2]
[368752057,1751346642317,-500.0,0.00018879,2]
[368752058,1751346642328,-460.0,0.00018879,2]
[368752059,1751346642338,-1017.95,0.00018879,2]
[368752060,1751346642347,-325.16573376,0.0001888,2]
[368752061,1751346642359,-1530.39,0.0001888,2]
[368752062,1751346642369,-764.74,0.0001888,2]
[368752063,1751346642380,-777.80356088,0.000189,2]
[368752065,1751346642389,-2747.37089423,0.00018937,2]
[368752067,1751346642399,-500.0,0.00018983,2]
[368752069,1751346642409,-500.0,0.00018983,2]
[368752071,1751346642418,-500.0,0.00018983,2]
[368752072,1751346642428,-500.0,0.00018983,2]
[368752073,1751346642438,-500.0,0.00018983,2]
[368752074,1751346642447,-500.0,0.00018983,2]
[368752075,1751346642457,-1000.0,0.00018999,2]
[368752076,1751346642467,-1000.0,0.00018999,2]
[368752077,1751346642476,-36366.86117101,0.00019,2]
[368752078,1751346642486,-230.32585361,0.00019038,2]
[368752079,1751346642497,-847.53272281,0.00019038,2]
[368752080,1751346642507,-837.20943635,0.00019038,2]
[368752081,1751346642516,-160.0,0.00019038,2]
[368752082,1751346642526,-160.0,0.00019038,2]
[368752083,1751346642536,-160.0,0.00019038,2]
[368752084,1751346642546,-215.01728679,0.00019038,2]
[368752085,1751346642556,-160.0,0.00019038,2]
[368752086,1751346642566,-160.0,0.00019038,2]
[368752087,1751346642575,-213.87551669,0.00019038,2]
[368752088,1751346642585,-12571.40790328,0.00019038,2]
[368752089,1751346642594,-160.0,0.00019038,2]
[368752090,1751346642605,-160.0,0.00019038,2]
[368752091,1751346642614,-160.0,0.00019039,2]
[368752092,1751346642624,-202.06582713,0.00019103,2]
[368752093,1751346642634,-1120.91,0.00019152,2]
[368752094,1751346642643,-460.0,0.00019152,2]
[368752095,1751346642653,-814.6,0.00019152,2]
[368752096,1751346642663,-1045.67,0.00019152,2]
[368752097,1751346642673,-903.44,0.00019152,2]
[368752098,1751346642682,-1348.74,0.00019152,2]
[368752099,1751346642692,-1000.0,0.00019152,2]
[368752100,1751346642702,-802.41,0.00019152,2]
[368752101,1751346642711,-460.0,0.00019152,2]
[368752102,1751346642721,-500.0,0.00019152,2]
[368752103,1751346642731,-727.68,0.00019152,2]
[368752104,1751346642741,-460.0,0.00019152,2]
[368752105,1751346642750,-460.0,0.00019153,2]
[368752106,1751346642760,-460.0,0.00019153,2]
[368752107,1751346642770,-460.0,0.00019153,2]
[368752108,1751346642779,-460.0,0.00019153,2]
[368752109,1751346642789,-2007.19,0.00019153,2]
[368752110,1751346642798,-515.58,0.00019153,2]
[368752111,1751346642808,-460.0,0.00019153,2]
[368752112,1751346642817,-460.0,0.00019153,2]
[368752113,1751346642827,-460.0,0.00019153,2]
[368752114,1751346642836,-747.3,0.00019153,2]
[368752115,1751346642846,-460.0,0.00019153,2]
[368752116,1751346642856,-766.47,0.00019153,2]
[368752117,1751346642866,-1035.9,0.00019153,2]
[368752118,1751346642875,-460.0,0.00019153,2]
[368752119,1751346642884,-460.0,0.00019153,2]
[368752120,1751346642894,-460.0,0.00019153,2]
[368752121,1751346642903,-460.0,0.00019153,2]
[368752122,1751346642913,-1017.95,0.00019153,2]
[368752123,1751346642925,-1530.39,0.00019154,2]
[368752124,1751346642935,-764.74,0.00019154,2]
[368752125,1751346642945,-500.0,0.00019178,2]
[368752126,1751346642954,-500.0,0.00019178,2]
[368752127,1751346642963,-500.0,0.00019178,2]
[368752128,1751346642974,-500.0,0.00019178,2]
[368752129,1751346642984,-327.50951355,0.00019178,2]
[368752130,1751346642996,-344.472824,0.00019178,2]
[368752131,1751346643006,-500.0,0.0001919,2]
[368752132,1751346643017,-366.1706175,0.00019205,2]
[368752133,1751346643027,-151.0,0.00019232,2]
[368752134,1751346643037,-66691.13880326,0.00019242,2]
[368752135,1751346643047,-151.0,0.0001926,2]
[368752136,1751346643057,-151.0,0.00019287,2]
[368752137,1751346643067,-151.0,0.00019287,2]
[368752138,1751346643076,-151.0,0.00019314,2]
[368752140,1751346643086,-292.0,0.00019315,2]
[368752141,1751346643095,-827.84078228,0.00019329,2]
[368752142,1751346643105,-100000.0,0.00019329,2]
[368752143,1751346643114,-2747.37089423,0.0001934,2]
[368752144,1751346643124,-287.0,0.00019342,2]
[368752145,1751346643133,-1120.91,0.00019426,2]
[368752146,1751346643142,-460.0,0.00019426,2]
[368752147,1751346643152,-814.6,0.00019426,2]
[368752148,1751346643161,-1045.67,0.00019426,2]
[368752149,1751346643170,-903.44,0.00019426,2]
[368752150,1751346643180,-1348.74,0.00019426,2]
[368752151,1751346643190,-460.0,0.00019426,2]
[368752152,1751346643199,-802.41,0.00019426,2]
[368752153,1751346643210,-500.0,0.00019426,2]
[368752154,1751346643220,-727.68,0.00019426,2]
[368752155,1751346643230,-460.0,0.00019426,2]
[368752156,1751346643240,-214.06548667,0.00019427,2]
[368752157,1751346643250,-460.0,0.00019427,2]
[368752158,1751346643261,-460.0,0.00019427,2]
[368752159,1751346643271,-460.0,0.00019427,2]
[368752160,1751346643280,-2007.19,0.00019427,2]
[368752161,1751346643290,-515.58,0.00019427,2]
[368752162,1751346643300,-460.0,0.00019427,2]
[368752163,1751346643310,-460.0,0.00019427,2]
[368752164,1751346643319,-460.0,0.00019427,2]
[368752165,1751346643328,-747.3,0.00019427,2]
[368752166,1751346643338,-460.0,0.00019427,2]
[368752167,1751346643348,-766.47,0.00019427,2]
[368752168,1751346643357,-1035.9,0.00019427,2]
[368752169,1751346643366,-460.0,0.00019427,2]
[368752170,1751346643376,-460.0,0.00019427,2]
[368752171,1751346643385,-460.0,0.00019427,2]
[368752172,1751346643395,-460.0,0.00019427,2]
[368752173,1751346643409,-1017.95,0.00019427,2]
[368752174,1751346643419,-1530.39,0.00019428,2]
[368752175,1751346643428,-764.74,0.00019428,2]
[368752176,1751346643438,-1000.0,0.00019531,2]
[368752177,1751346643448,-501.08888605,0.00019531,2]
[368752178,1751346643458,-1000.0,0.00019531,2]
[368752179,1751346643467,-1000.0,0.00019531,2]
[368752180,1751346643478,-500.0,0.00019531,2]
[368752181,1751346643488,-186.06798606,0.00019555,2]
[368752182,1751346643498,-180.1531446,0.00019616,2]
[368752183,1751346643508,-161.5299746,0.00019616,2]
[368752184,1751346643519,-2747.37089423,0.0001963,2]
[368752185,1751346643531,-500.0,0.00019679,2]
[368752186,1751346643541,-690.642,0.0001968,2]
[368752187,1751346643551,-500.0,0.0001968,2]
[368752188,1751346643562,-500.0,0.0001968,2]
[368752189,1751346643572,-4714.06057277,0.0001968,2]
[368752190,1751346643582,-470.11513765,0.0001968,2]
[368752191,1751346643591,-500.0,0.0001968,2]
[368752192,1751346643601,-500.0,0.0001968,2]
[368752193,1751346643611,-500.0,0.0001968,2]
[368752194,1751346643620,-207.4,0.0001968,2]
[368752195,1751346643630,-500.0,0.0001968,2]
[368752196,1751346643639,-500.0,0.0001968,2]
[368752197,1751346643649,-500.0,0.0001968,2]
[368752198,1751346643658,-500.0,0.0001968,2]
[368752199,1751346643668,-500.0,0.0001968,2]
[368752200,1751346643678,-500.0,0.0001968,2]
[368752201,1751346643687,-500.0,0.0001968,2]
[368752202,1751346643696,-500.0,0.0001968,2]
[368752203,1751346643706,-500.0,0.0001968,2]
[368752204,1751346643715,-500.0,0.0001968,2]
[368752205,1751346643725,-500.0,0.0001968,2]
[368752206,1751346643736,-500.0,0.0001968,2]
[368752207,1751346643746,-500.0,0.0001968,2]
[368752208,1751346643756,-500.0,0.0001968,2]
[368752209,1751346643765,-500.0,0.0001968,2]
[368752210,1751346643775,-500.0,0.0001968,2]
[368752211,1751346643785,-500.0,0.0001968,2]
[368752212,1751346643795,-500.0,0.0001968,2]
[368752213,1751346643804,-500.0,0.0001968,2]
[368752214,1751346643814,-500.0,0.0001968,2]
[368752215,1751346643823,-500.0,0.0001968,2]
[368752216,1751346643833,-500.0,0.0001968,2]
[368752217,1751346643843,-500.0,0.0001968,2]
[368752218,1751346643852,-500.0,0.0001968,2]
[368752219,1751346643863,-500.0,0.0001968,2]
[368752220,1751346643874,-500.0,0.0001968,2]
[368752221,1751346643884,-500.0,0.0001968,2]
[368752222,1751346643895,-500.0,0.0001968,2]
[368752223,1751346643906,-500.0,0.0001968,2]
[368752224,1751346643916,-404.00844063,0.0001968,2]
[368752225,1751346643930,-500.0,0.0001968,2]
[368752226,1751346643939,-420.0,0.00019699,2]
[368752227,1751346643949,-1120.91,0.000197,2]
[368752228,1751346643959,-460.0,0.000197,2]
[368752229,1751346643971,-814.6,0.000197,2]
[368752230,1751346643980,-1045.67,0.000197,2]
[368752231,1751346643990,-903.44,0.000197,2]
[368752232,1751346644003,-1348.74,0.000197,2]
[368752233,1751346644014,-460.0,0.000197,2]
[368752234,1751346644023,-802.41,0.000197,2]
[368752235,1751346644033,-727.68,0.000197,2]
[368752236,1751346644043,-460.0,0.000197,2]
[368752237,1751346644052,-460.0,0.00019701,2]
[368752238,1751346644062,-460.0,0.00019701,2]
[368752239,1751346644071,-460.0,0.00019701,2]
[368752240,1751346644081,-2007.19,0.00019701,2]
[368752241,1751346644090,-515.58,0.00019701,2]
[368752242,1751346644100,-460.0,0.00019701,2]
[368752243,1751346644110,-515.57,0.00019701,2]
[368752244,1751346644119,-460.0,0.00019701,2]
[368752245,1751346644128,-747.3,0.00019701,2]
[368752246,1751346644138,-460.0,0.00019701,2]
[368752247,1751346644147,-766.47,0.00019701,2]
[368752248,1751346644156,-1035.9,0.00019701,2]
[368752249,1751346644166,-327.15603668,0.00019701,2]
[368752250,1751346644175,-460.0,0.00019701,2]
[368752251,1751346644184,-460.0,0.00019701,2]
[368752252,1751346644194,-460.0,0.00019701,2]
[368752253,1751346644204,-500.0,0.00019701,2]
[368752254,1751346644215,-1017.95,0.00019701,2]
[368752255,1751346644224,-202.06582713,0.00019702,2]
[368752256,1751346644233,-1530.39,0.00019702,2]
[368752257,1751346644244,-764.74,0.00019702,2]
[368752258,1751346644253,-636.0,0.00019796,2]
[368752259,1751346644263,-490.0,0.000198,2]
[368752260,1751346644273,-490.0,0.000198,2]
[368752261,1751346644283,-490.0,0.000198,2]
[368752262,1751346644292,-490.0,0.000198,2]
[368752263,1751346644303,-490.0,0.000198,2]
[368752264,1751346644312,-490.0,0.000198,2]
[368752265,1751346644322,-490.0,0.000198,2]
[368752266,1751346644332,-490.0,0.000198,2]
[368752267,1751346644343,-490.0,0.000198,2]
[368752268,1751346644354,-490.0,0.000198,2]
[368752269,1751346644364,-490.0,0.000198,2]
[368752270,1751346644375,-490.0,0.000198,2]
[368752271,1751346644385,-570.22657078,0.000199,2]
[368752272,1751346644397,-2747.37089425,0.00019909,2]
[368752273,1751346644407,-1120.91,0.00019974,2]
[368752274,1751346644417,-460.0,0.00019974,2]
[368752275,1751346644426,-814.6,0.00019974,2]
[368752276,1751346644437,-1045.67,0.00019974,2]
[368752277,1751346644446,-903.44,0.00019974,2]
[368752278,1751346644457,-1348.74,0.00019974,2]
[368752279,1751346644466,-460.0,0.00019974,2]
[368752280,1751346644476,-802.41,0.00019974,2]
[368752281,1751346644485,-727.68,0.00019974,2]
[368752282,1751346644587,-460.0,0.00019974,2]
[368752283,1751346644599,-460.0,0.00019975,2]
[368752284,1751346644609,-460.0,0.00019975,2]
[368752285,1751346644619,-460.0,0.00019975,2]
[368752286,1751346644628,-2007.19,0.00019975,2]
[368752287,1751346644638,-515.58,0.00019975,2]
[368752288,1751346644648,-460.0,0.00019975,2]
[368752289,1751346644657,-460.0,0.00019975,2]
[368752290,1751346644667,-747.3,0.00019975,2]
[368752291,1751346644677,-460.0,0.00019975,2]
[368752292,1751346644686,-766.47,0.00019975,2]
[368752293,1751346644696,-1035.9,0.00019975,2]
[368752294,1751346644706,-460.0,0.00019975,2]
[368752295,1751346644715,-460.0,0.00019975,2]
[368752296,1751346644725,-460.0,0.00019975,2]
[368752297,1751346644735,-500.0,0.00019975,2]
[368752298,1751346644746,-1017.95,0.00019975,2]
[368752299,1751346644757,-1530.39,0.00019976,2]
[368752300,1751346644767,-764.74,0.00019976,2]
[368752301,1751346644778,-127.36370415,0.00019999,2]
[368752302,1751346645178,-500.0,0.00018056,2]
[368752304,1751346645188,-500.0,0.00018056,2]
[368752305,1751346645198,-500.0,0.00018056,2]
[368752307,1751346645208,-500.0,0.00018056,2]
[368752308,1751346645217,-419.87120746,0.00018056,2]
[368752315,1751346645627,-506.72,0.00018056,2]
[368752316,1751346645637,-460.0,0.00018057,2]
[368752317,1751346645647,-460.0,0.00018057,2]
[368752318,1751346645657,-242.25019674,0.00018057,2]
[368752319,1751346645669,-217.74980326,0.00018057,2]
[368752320,1751346645678,-391.77785301,0.00018331,2]
[368752321,1751346645689,-68.22214699,0.00018331,2]
[368752322,1751346645699,-460.0,0.00018331,2]
[368752323,1751346645708,-460.0,0.00018605,2]
[368752324,1751346645717,-460.0,0.00018605,2]
[368752325,1751346645727,-460.0,0.00018879,2]
[368752326,1751346645736,-460.0,0.00018879,2]
[368752327,1751346645746,-460.0,0.00019153,2]
[368752328,1751346645756,-460.0,0.00019427,2]
[368752329,1751346645765,-460.0,0.00019701,2]
[368752330,1751346645776,-372.63629585,0.00019999,2]
[368752331,1751346645786,-500.0,0.00019999,2]
[368752332,1751346645796,-500.0,0.00019999,2]
[368752333,1751346645805,-500.0,0.00019999,2]
[368752334,1751346645814,-18749.67774334,0.0002,2]
[368752335,1751346646109,-500.0,0.00018055,2]
[368752336,1751346646120,-500.0,0.00018055,2]
[368752337,1751346646132,-436.55414675,0.00018055,2]
[368752338,1751346646141,-500.0,0.00018055,2]
[368752339,1751346646152,-500.0,0.00018055,2]
[368752340,1751346646162,-500.0,0.00018055,2]
[368752341,1751346646172,-500.0,0.00018055,2]
[368752342,1751346646182,-500.0,0.00018055,2]
[368752343,1751346646191,-500.0,0.00018055,2]
[368752344,1751346646201,-500.0,0.00018055,2]
[368752345,1751346646211,-500.0,0.00018055,2]
[368752346,1751346646220,-460.0,0.00018056,2]
[368752347,1751346646229,-460.0,0.00018056,2]
[368752348,1751346646239,-460.0,0.00018057,2]
[368752349,1751346646248,-460.0,0.00018331,2]
[368752350,1751346646258,-460.0,0.00019153,2]
[368752351,1751346646267,-460.0,0.00019427,2]
[368752352,1751346646276,-460.0,0.00019701,2]
[368752353,1751346646285,-460.0,0.00019975,2]
[368752354,1751346646295,-460.0,0.00019975,2]
[368752355,1751346646304,-13312.31720969,0.0002,2]
[368752356,1751346646316,-368.65206835,0.0002,2]
[368752357,1751346647676,-283.04177561,0.0002,2]
[368752358,1751346740903,-283.0,0.00018054,2]
[368752360,1751346781171,207.17458898,0.00024658,120]
[368752361,1751346785770,150.0,0.00018,2]
[368752364,1751347024550,-214.90217358,0.00018053,2]
[368752427,1751347277723,498.40869768,0.00017957,2]
[368752439,1751347362517,280.890384,0.00013699,2]
[368752442,1751347456435,621.20593165,0.00017954,2]
[368752443,1751347467033,186.961088,0.00017953,2]
[368752445,1751347574225,19777.0,0.00018,2]
[368752446,1751347597191,-151.37019777,0.00018044,2]
[368752447,1751347597212,-169.85178669,0.00018052,2]
[368752449,1751347618052,398.72695812,0.00017955,2]
[368752450,1751347633089,-130.14821331,0.00018052,2]
[368752451,1751347633112,-1200.0,0.00018052,2]
[368752452,1751347633136,-1200.0,0.00018052,2]
[368752453,1751347633159,-196.04247769,0.00018053,2]
[368752477,1751347832081,-300.0,0.00018051,2]
[368752479,1751347832092,-300.0,0.00018051,2]
[368752481,1751347832102,-167.0,0.00018051,2]
[368752482,1751347832112,-500.0,0.00018052,2]
[368752483,1751347832122,-493.30092622,0.00018052,2]
[368752484,1751347832131,-146.66988019,0.00018052,2]
[368752485,1751347832149,-353.33011981,0.00018052,2]
[368752486,1751347832160,-500.0,0.00018052,2]
[368752487,1751347832171,-500.0,0.00018052,2]
[368752488,1751347832182,-9.99427187,0.00018052,2]
[368752489,1751347832207,-548.27603708,0.00018052,2]
[368752490,1751347832217,-500.0,0.00018052,2]
[368752491,1751347832228,-500.0,0.00018052,2]
[368752492,1751347832237,-250.10435882,0.00018052,2]
[368752494,1751347832247,-500.0,0.00018052,2]
[368752496,1751347832257,-500.0,0.00018052,2]
[368752498,1751347832266,-326.38010686,0.00018052,2]
[368752500,1751347832276,-460.0,0.00018052,2]
[368752502,1751347832286,-460.0,0.00018052,2]
[368752504,1751347832295,-460.0,0.00018052,2]
[368752506,1751347832304,-460.0,0.00018052,2]
[368752509,1751347832314,-460.0,0.00018052,2]
[368752511,1751347832325,-1185.80552231,0.00018052,2]
[368752513,1751347832334,-460.0,0.00018053,2]
[368752515,1751347832343,-400.87081951,0.00018053,2]
[368752517,1751347832355,-4.52486628,0.00018053,2]
[368752519,1751347832365,-457.70313372,0.00018053,2]
[368752539,1751347837971,-2.29686628,0.00018053,2]
[368752540,1751347837982,-460.0,0.00018053,2]
[368752542,1751347837992,-461.93368982,0.00018053,2]
[368752543,1751347838002,-460.0,0.00018053,2]
[368752544,1751347838012,-404.93006758,0.00018053,2]
[368752545,1751347838022,-460.0,0.00018053,2]
[368752546,1751347838032,-460.0,0.00018053,2]
[368752547,1751347838041,-460.0,0.00018053,2]
[368752548,1751347838051,-461.11871174,0.00018053,2]
[368752549,1751347838062,-460.0,0.00018053,2]
[368752550,1751347838071,-460.0,0.00018053,2]
[368752551,1751347838081,-460.0,0.00018053,2]
[368752552,1751347838090,-98.52803466,0.00018053,2]
[368752553,1751347838103,-382.75254456,0.00018053,2]
[368752554,1751347838112,-620.53,0.00018053,2]
[368752555,1751347838121,-460.0,0.00018053,2]
[368752556,1751347838132,-460.0,0.00018053,2]
[368752557,1751347838142,-1449.87,0.00018053,2]
[368752558,1751347838151,-460.0,0.00018053,2]
[368752559,1751347838161,-460.0,0.00018053,2]
[368752560,1751347838170,-460.0,0.00018053,2]
[368752561,1751347838180,-460.0,0.00018053,2]
[368752562,1751347838190,-460.0,0.00018053,2]
[368752563,1751347838199,-460.0,0.00018053,2]
[368752564,1751347838209,-1310.1,0.00018053,2]
[368752565,1751347838219,-460.0,0.00018053,2]
[368752566,1751347838228,-460.0,0.00018053,2]
[368752568,1751347838237,-460.0,0.00018053,2]
[368752569,1751347838249,-1152.39,0.00018053,2]
[368752570,1751347838259,-366.84033479,0.00018053,2]
[368752571,1751347838273,-93.15966521,0.00018053,2]
[368752572,1751347838284,-1521.08,0.00018053,2]
[368752573,1751347838294,-460.0,0.00018053,2]
[368752574,1751347838304,-460.0,0.00018053,2]
[368752575,1751347838315,-460.0,0.00018053,2]
[368752576,1751347838325,-460.0,0.00018053,2]
[368752577,1751347838334,-460.0,0.00018053,2]
[368752578,1751347838343,-460.0,0.00018053,2]
[368752579,1751347838352,-460.0,0.00018053,2]
[368752580,1751347838362,-501.82,0.00018053,2]
[368752581,1751347838372,-460.0,0.00018053,2]
[368752582,1751347838382,-460.0,0.00018053,2]
[368752583,1751347838393,-460.0,0.00018053,2]
[368752584,1751347838403,-961.2,0.00018053,2]
[368752585,1751347838413,-36.11795158,0.00018053,2]
[368752586,1751347838454,-423.88204842,0.00018053,2]
[368752587,1751347838465,-460.0,0.00018053,2]
[368752588,1751347838476,-476.80838209,0.00018053,2]
[368752589,1751347838487,-460.0,0.00018053,2]
[368752590,1751347838497,-460.0,0.00018053,2]
[368752591,1751347838510,-460.0,0.00018053,2]
[368752592,1751347838519,-1069.3,0.00018053,2]
[368752593,1751347838529,-460.0,0.00018053,2]
[368752594,1751347838539,-460.0,0.00018053,2]
[368752595,1751347838548,-460.0,0.00018053,2]
[368752596,1751347838558,-460.0,0.00018053,2]
[368752597,1751347838567,-460.0,0.00018053,2]
[368752598,1751347838578,-460.0,0.00018053,2]
[368752599,1751347838587,-1698.43,0.00018053,2]
[368752600,1751347838596,-460.0,0.00018053,2]
[368752601,1751347838606,-460.0,0.00018053,2]
[368752602,1751347838616,-460.0,0.00018053,2]
[368752603,1751347838628,-460.0,0.00018053,2]
[368752604,1751347838638,-460.0,0.00018053,2]
[368752605,1751347838647,-460.0,0.00018054,2]
[368752606,1751347838657,-460.0,0.00018054,2]
[368752607,1751347838667,-460.0,0.00018054,2]
[368752608,1751347838677,-460.0,0.00018054,2]
[368752609,1751347838686,-460.0,0.00018054,2]
[368752610,1751347838696,-460.0,0.00018054,2]
[368752611,1751347838705,-521.51704483,0.00018054,2]
[368752612,1751347838715,-604.97083784,0.00018054,2]
[368752613,1751347838725,-460.0,0.00018054,2]
[368752614,1751347838735,-460.0,0.00018054,2]
[368752615,1751347838744,-460.0,0.00018054,2]
[368752617,1751347838754,-460.0,0.00018054,2]
[368752619,1751347838764,-460.0,0.00018054,2]
[368752621,1751347838775,-460.0,0.00018054,2]
[368752623,1751347838784,-214.32316077,0.00018054,2]
[368752625,1751347838794,-460.0,0.00018054,2]
[368752626,1751347838805,-460.0,0.00018054,2]
[368752627,1751347838815,-460.0,0.00018054,2]
[368752628,1751347838826,-460.0,0.00018054,2]
[368752630,1751347838836,-460.0,0.00018054,2]
[368752632,1751347838846,-460.0,0.00018054,2]
[368752634,1751347838856,-460.0,0.00018054,2]
[368752636,1751347838866,-460.0,0.00018054,2]
[368752638,1751347838876,-460.0,0.00018054,2]
[368752639,1751347838885,-460.0,0.00018054,2]
[368752640,1751347838895,-460.0,0.00018054,2]
[368752641,1751347838905,-460.0,0.00018054,2]
[368752642,1751347838914,-460.0,0.00018054,2]
[368752643,1751347838924,-460.0,0.00018054,2]
[368752644,1751347838934,-460.0,0.00018054,2]
[368752645,1751347838943,-426.31486622,0.00018054,2]
[368752646,1751347838953,-460.0,0.00018054,2]
[368752647,1751347838963,-460.0,0.00018054,2]
[368752648,1751347838973,-460.0,0.00018054,2]
[368752649,1751347838982,-460.0,0.00018054,2]
[368752650,1751347838992,-460.0,0.00018054,2]
[368752651,1751347839002,-460.0,0.00018054,2]
[368752652,1751347839013,-460.0,0.00018054,2]
[368752653,1751347839023,-460.0,0.00018054,2]
[368752654,1751347839032,-460.0,0.00018054,2]
[368752655,1751347839042,-460.0,0.00018054,2]
[368752656,1751347839052,-465.21038152,0.00018054,2]
[368752657,1751347839062,-460.0,0.00018054,2]
[368752658,1751347839073,-460.0,0.00018054,2]
[368752659,1751347839084,-460.0,0.00018054,2]
[368752660,1751347839094,-460.0,0.00018054,2]
[368752661,1751347839103,-460.0,0.00018054,2]
[368752662,1751347839113,-460.0,0.00018054,2]
[368752663,1751347839123,-395.67796466,0.00018054,2]
[368752664,1751347839134,-322.27132643,0.00018054,2]
[368752665,1751347839143,-500.0,0.00018054,2]
[368752666,1751347839153,-500.0,0.00018054,2]
[368752667,1751347839164,-500.0,0.00018054,2]
[368752668,1751347839174,-500.0,0.00018054,2]
[368752669,1751347839184,-500.0,0.00018054,2]
[368752670,1751347839194,-500.0,0.00018054,2]
[368752671,1751347839203,-500.0,0.00018054,2]
[368752672,1751347839213,-519.62424384,0.00018054,2]
[368752673,1751347839222,-460.0,0.00018054,2]
[368752674,1751347839232,-467.85559498,0.00018054,2]
[368752675,1751347839242,-500.0,0.00018054,2]
[368752676,1751347839252,-613.45803611,0.00018054,2]
[368752677,1751347839262,-500.0,0.00018054,2]
[368752678,1751347839271,-500.0,0.00018054,2]
[368752679,1751347839281,-460.0,0.00018054,2]
[368752680,1751347839291,-460.0,0.00018054,2]
[368752681,1751347839301,-460.0,0.00018054,2]
[368752682,1751347839311,-460.0,0.00018054,2]
[368752683,1751347839321,-553.04208508,0.00018054,2]
[368752684,1751347839332,-460.0,0.00018054,2]
[368752685,1751347839342,-460.0,0.00018054,2]
[368752686,1751347839352,-460.0,0.00018054,2]
[368752687,1751347839361,-500.0,0.00018054,2]
[368752688,1751347839371,-460.0,0.00018054,2]
[368752689,1751347839381,-460.0,0.00018054,2]
[368752690,1751347839391,-460.0,0.00018054,2]
[368752691,1751347839400,-460.0,0.00018054,2]
[368752692,1751347839409,-460.70807255,0.00018054,2]
[368752693,1751347839419,-460.0,0.00018054,2]
[368752694,1751347839429,-460.0,0.00018054,2]
[368752695,1751347839442,-460.0,0.00018054,2]
[368752696,1751347839452,-460.0,0.00018054,2]
[368752697,1751347839462,-233.99,0.00018054,2]
[368752698,1751347839472,-460.0,0.00018054,2]
[368752699,1751347839481,-460.0,0.00018054,2]
[368752700,1751347839492,-460.0,0.00018054,2]
[368752701,1751347839502,-460.0,0.00018054,2]
[368752702,1751347839511,-460.0,0.00018054,2]